[Event "Early-Titled-Tuesday-Blitz-March-26-2024"]
[Site "Chess.com"]
[Date "2024.03.26"]
[Round "4"]
[White "valeriocarnicelli"]
[Black "DavidGavrilescu18"]
[Result "0-1"]
[WhiteElo "2558"]
[BlackElo "2768"]
[TimeControl "180+1"]
[EndTime "8:39:18 PDT"]
[Termination "DavidGavrilescu18 won by checkmate"]

1. e4 {[%clk 0:03:00.9]} 1... c5 {[%clk 0:02:56.8]} 2. Nf3 {[%clk 0:03:00.9]}
2... a6 {[%clk 0:02:56.8]} 3. c3 {[%clk 0:02:59.8]} 3... e6 {[%clk 0:02:53.6]}
4. d4 {[%clk 0:02:59.6]} 4... d5 {[%clk 0:02:54.5]} 5. e5 {[%clk 0:02:59.4]}
5... Bd7 {[%clk 0:02:46.4]} 6. Bd3 {[%clk 0:02:53.8]} 6... Nc6 {[%clk
0:02:45.4]} 7. a3 {[%clk 0:02:51.2]} 7... Qb6 {[%clk 0:02:43.9]} 8. dxc5 {[%clk
0:02:44.7]} 8... Bxc5 {[%clk 0:02:44.8]} 9. O-O {[%clk 0:02:45.2]} 9... Bf8
{[%clk 0:02:38.7]} 10. Re1 {[%clk 0:02:44.7]} 10... Nge7 {[%clk 0:02:38.7]} 11.
b4 {[%clk 0:02:38.2]} 11... Ng6 {[%clk 0:02:33.9]} 12. Bb2 {[%clk 0:02:35.6]}
12... Be7 {[%clk 0:02:31.7]} 13. Nbd2 {[%clk 0:02:32.8]} 13... O-O {[%clk
0:02:28.3]} 14. c4 {[%clk 0:02:32.4]} 14... dxc4 {[%clk 0:02:27.6]} 15. Nxc4
{[%clk 0:02:33]} 15... Qc7 {[%clk 0:02:28]} 16. Rc1 {[%clk 0:02:32.3]} 16...
Rad8 {[%clk 0:02:27.9]} 17. Qc2 {[%clk 0:02:30.2]} 17... Na7 {[%clk 0:02:20.7]}
18. Qb1 {[%clk 0:02:24.9]} 18... Qb8 {[%clk 0:02:14.7]} 19. g3 {[%clk
0:02:13.8]} 19... Bc6 {[%clk 0:02:12.5]} 20. Be4 {[%clk 0:02:14.3]} 20... Rd7
{[%clk 0:01:54.7]} 21. h4 {[%clk 0:02:13.4]} 21... Rfd8 {[%clk 0:01:44.9]} 22.
h5 {[%clk 0:02:13.7]} 22... Nf8 {[%clk 0:01:44.7]} 23. Kg2 {[%clk 0:02:11.2]}
23... b5 {[%clk 0:01:34.6]} 24. Na5 {[%clk 0:02:08]} 24... Bd5 {[%clk 0:01:35]}
25. Bxd5 {[%clk 0:01:47.2]} 25... Rxd5 {[%clk 0:01:35.9]} 26. Qe4 {[%clk
0:01:47.6]} 26... h6 {[%clk 0:01:33.5]} 27. Bd4 {[%clk 0:01:38.4]} 27... R8d7
{[%clk 0:01:19]} 28. Bxa7 {[%clk 0:01:34.4]} 28... Qxa7 {[%clk 0:01:19.9]} 29.
Rc8 {[%clk 0:01:34.8]} 29... Bd8 {[%clk 0:01:10.1]} 30. Nc6 {[%clk 0:01:24.2]}
30... Qb6 {[%clk 0:01:10.2]} 31. Rc1 {[%clk 0:01:21.3]} 31... Rc7 {[%clk
0:01:03.2]} 32. Rxc7 {[%clk 0:00:38.7]} 32... Qxc7 {[%clk 0:01:04.1]} 33. Rc2
{[%clk 0:00:34]} 33... Qd7 {[%clk 0:00:51.1]} 34. Nb8 {[%clk 0:00:26.7]} 34...
Qb7 {[%clk 0:00:47.9]} 35. Nc6 {[%clk 0:00:27.1]} 35... Bb6 {[%clk 0:00:48]} 36.
Ncd4 {[%clk 0:00:15.1]} 36... Nh7 {[%clk 0:00:43.6]} 37. Rd2 {[%clk 0:00:05.5]}
37... Qd7 {[%clk 0:00:31.7]} 38. Nb3 {[%clk 0:00:05.3]} 38... Ng5 {[%clk
0:00:21.4]} 39. Nxg5 {[%clk 0:00:04.1]} 39... hxg5 {[%clk 0:00:22.3]} 40. Rxd5
{[%clk 0:00:03.7]} 40... exd5 {[%clk 0:00:23.2]} 41. Qd3 {[%clk 0:00:04]} 41...
Qe6 {[%clk 0:00:20.4]} 42. Qe2 {[%clk 0:00:02.5]} 42... d4 {[%clk 0:00:20.9]}
43. Nd2 {[%clk 0:00:03]} 43... Qd5+ {[%clk 0:00:21.2]} 44. Qe4 {[%clk
0:00:03.1]} 44... Qe6 {[%clk 0:00:20.3]} 45. Qa8+ {[%clk 0:00:02.3]} 45... Kh7
{[%clk 0:00:20.8]} 46. Qxa6 {[%clk 0:00:02.9]} 46... Qc6+ {[%clk 0:00:18.6]} 47.
f3 {[%clk 0:00:03.3]} 47... d3 {[%clk 0:00:17.5]} 48. Kh3 {[%clk 0:00:02.9]}
48... Qe6+ {[%clk 0:00:13.2]} 49. g4 {[%clk 0:00:02.7]} 49... Qc6 {[%clk
0:00:12.7]} 50. Ne4 {[%clk 0:00:02.7]} 50... f6 {[%clk 0:00:11.3]} 51. exf6
{[%clk 0:00:02.5]} 51... gxf6 {[%clk 0:00:12.2]} 52. a4 {[%clk 0:00:01.8]} 52...
bxa4 {[%clk 0:00:12.6]} 53. Qxd3 {[%clk 0:00:02]} 53... Kg7 {[%clk 0:00:11.7]}
54. b5 {[%clk 0:00:02.7]} 54... Qc7 {[%clk 0:00:10.1]} 55. Qd5 {[%clk
0:00:02.9]} 55... a3 {[%clk 0:00:10.1]} 56. Qf5 {[%clk 0:00:03.2]} 56... a2
{[%clk 0:00:09.3]} 57. Qxf6+ {[%clk 0:00:02.9]} 57... Kg8 {[%clk 0:00:09.9]} 58.
h6 {[%clk 0:00:03.5]} 58... Qf7 {[%clk 0:00:09.1]} 59. Qxb6 {[%clk 0:00:02.7]}
59... a1=Q {[%clk 0:00:08]} 60. Qd8+ {[%clk 0:00:02.9]} 60... Qf8 {[%clk
0:00:07.8]} 61. Qxg5+ {[%clk 0:00:03]} 61... Kh8 {[%clk 0:00:08.1]} 62. Qg6
{[%clk 0:00:02.4]} 62... Qxf3+ {[%clk 0:00:07.9]} 63. Kh4 {[%clk 0:00:02.7]}
63... Qah1+ {[%clk 0:00:07.5]} 64. Kg5 {[%clk 0:00:03.3]} 64... Qc1+ {[%clk
0:00:07.3]} 65. Kh5 {[%clk 0:00:02.8]} 65... Qh3# {[%clk 0:00:07.1]} 0-1

[Event "Early-Titled-Tuesday-Blitz-March-26-2024"]
[Site "Chess.com"]
[Date "2024.03.26"]
[Round "4"]
[White "teresin05"]
[Black "Kavyev_Ruslan"]
[Result "0-1"]
[WhiteElo "2269"]
[BlackElo "2408"]
[TimeControl "180+1"]
[EndTime "8:39:22 PDT"]
[Termination "Kavyev_Ruslan won on time"]

1. e4 {[%clk 0:02:59.7]} 1... c5 {[%clk 0:03:00]} 2. Nf3 {[%clk 0:02:59.3]} 2...
Nc6 {[%clk 0:03:00.5]} 3. d4 {[%clk 0:02:59.9]} 3... cxd4 {[%clk 0:03:01.4]} 4.
Nxd4 {[%clk 0:03:00.7]} 4... Nf6 {[%clk 0:03:01.4]} 5. Nc3 {[%clk 0:02:58.2]}
5... e5 {[%clk 0:03:01.5]} 6. Ndb5 {[%clk 0:02:58.9]} 6... d6 {[%clk 0:03:01.7]}
7. Bg5 {[%clk 0:02:56]} 7... a6 {[%clk 0:03:01.2]} 8. Na3 {[%clk 0:02:56.1]}
8... b5 {[%clk 0:03:01.8]} 9. Nd5 {[%clk 0:02:56.4]} 9... Be7 {[%clk 0:03:01.2]}
10. Bxf6 {[%clk 0:02:55.9]} 10... Bxf6 {[%clk 0:03:02.1]} 11. c3 {[%clk
0:02:56.3]} 11... Rb8 {[%clk 0:03:00.3]} 12. Nc2 {[%clk 0:02:56.1]} 12... O-O
{[%clk 0:02:54.2]} 13. g3 {[%clk 0:02:55.4]} 13... Bg5 {[%clk 0:02:50.4]} 14.
Bg2 {[%clk 0:02:53.8]} 14... Be6 {[%clk 0:02:50]} 15. Nce3 {[%clk 0:02:53.3]}
15... Bxe3 {[%clk 0:02:36.8]} 16. Nxe3 {[%clk 0:02:54.2]} 16... Ne7 {[%clk
0:02:37.1]} 17. O-O {[%clk 0:02:52.9]} 17... Qc7 {[%clk 0:02:32.9]} 18. Qd2
{[%clk 0:02:51.4]} 18... Rfd8 {[%clk 0:02:32.5]} 19. a4 {[%clk 0:02:50.3]} 19...
Qc5 {[%clk 0:02:22.4]} 20. axb5 {[%clk 0:02:48.3]} 20... axb5 {[%clk 0:02:21.4]}
21. Rfd1 {[%clk 0:02:36.9]} 21... b4 {[%clk 0:02:19.9]} 22. cxb4 {[%clk
0:02:32.2]} 22... Rxb4 {[%clk 0:02:17.4]} 23. Nd5 {[%clk 0:02:17.3]} 23... Bxd5
{[%clk 0:02:08.4]} 24. exd5 {[%clk 0:02:18.2]} 24... Rd4 {[%clk 0:02:07]} 25.
Qa5 {[%clk 0:02:04.3]} 25... Rxd1+ {[%clk 0:01:48.7]} 26. Bf1 {[%clk 0:02:02.6]}
26... Qxa5 {[%clk 0:01:38.9]} 27. Rxa5 {[%clk 0:02:03.5]} 27... Rxd5 {[%clk
0:01:38.2]} 28. Ra7 {[%clk 0:02:02.8]} 28... Nf5 {[%clk 0:01:36.2]} 29. Kg2
{[%clk 0:02:02.3]} 29... Nd4 {[%clk 0:01:35.7]} 30. Bc4 {[%clk 0:02:01.5]} 30...
Rc5 {[%clk 0:01:31.2]} 31. Bxf7+ {[%clk 0:01:59.9]} 31... Kh8 {[%clk 0:01:31.5]}
32. h4 {[%clk 0:01:57.4]} 32... h6 {[%clk 0:01:29.7]} 33. Bg6 {[%clk 0:01:56.7]}
33... Rc2 {[%clk 0:01:28.8]} 34. Bxc2 {[%clk 0:01:51.1]} 34... Nxc2 {[%clk
0:01:29.7]} 35. Rb7 {[%clk 0:01:49.3]} 35... Kg8 {[%clk 0:01:27.8]} 36. b4
{[%clk 0:01:49.8]} 36... Nd4 {[%clk 0:01:27.2]} 37. b5 {[%clk 0:01:50.2]} 37...
Kf8 {[%clk 0:01:22.1]} 38. b6 {[%clk 0:01:50.2]} 38... Nc6 {[%clk 0:01:11.2]}
39. Rc7 {[%clk 0:01:50.2]} 39... Ne7 {[%clk 0:01:04]} 40. b7 {[%clk 0:01:49.7]}
40... Rb8 {[%clk 0:01:03.7]} 41. Rd7 {[%clk 0:01:44.9]} 41... Ke8 {[%clk
0:01:03.2]} 42. Rxd6 {[%clk 0:01:45.1]} 42... Rxb7 {[%clk 0:01:03]} 43. Re6
{[%clk 0:01:45.5]} 43... Rb5 {[%clk 0:01:02.4]} 44. f4 {[%clk 0:01:39.5]} 44...
Kf7 {[%clk 0:00:58.4]} 45. Ra6 {[%clk 0:01:28.2]} 45... exf4 {[%clk 0:00:58.4]}
46. gxf4 {[%clk 0:01:28.7]} 46... Rb3 {[%clk 0:00:58.3]} 47. Ra5 {[%clk
0:01:05.6]} 47... Kf6 {[%clk 0:00:54.4]} 48. h5 {[%clk 0:01:00.7]} 48... Rb6
{[%clk 0:00:50.8]} 49. Kg3 {[%clk 0:00:46.1]} 49... Rd6 {[%clk 0:00:50.6]} 50.
Kg4 {[%clk 0:00:44.1]} 50... Rd5 {[%clk 0:00:47.6]} 51. Ra6+ {[%clk 0:00:41.9]}
51... Kf7 {[%clk 0:00:47.6]} 52. Ra7 {[%clk 0:00:41.7]} 52... Rd1 {[%clk
0:00:46.2]} 53. Rb7 {[%clk 0:00:39.1]} 53... Rg1+ {[%clk 0:00:45.8]} 54. Kf3
{[%clk 0:00:35.7]} 54... Ke6 {[%clk 0:00:40.5]} 55. Rb6+ {[%clk 0:00:31.8]}
55... Kd7 {[%clk 0:00:38.5]} 56. Rb7+ {[%clk 0:00:31.8]} 56... Kd8 {[%clk
0:00:34.4]} 57. Rb8+ {[%clk 0:00:30.3]} 57... Kc7 {[%clk 0:00:33.4]} 58. Rf8
{[%clk 0:00:20.7]} 58... Kd6 {[%clk 0:00:31.9]} 59. Rb8 {[%clk 0:00:18.1]} 59...
Nd5 {[%clk 0:00:31]} 60. Rd8+ {[%clk 0:00:17.7]} 60... Ke6 {[%clk 0:00:29.5]}
61. Re8+ {[%clk 0:00:17.8]} 61... Kd7 {[%clk 0:00:30.1]} 62. Rf8 {[%clk
0:00:18.1]} 62... Nf6 {[%clk 0:00:30.3]} 63. Rf7+ {[%clk 0:00:17.1]} 63... Ke6
{[%clk 0:00:29.9]} 64. Rb7 {[%clk 0:00:14.3]} 64... Nxh5 {[%clk 0:00:29.6]} 65.
Rb6+ {[%clk 0:00:14.9]} 65... Kf7 {[%clk 0:00:29.6]} 66. Rb7+ {[%clk 0:00:14.9]}
66... Kg8 {[%clk 0:00:29.6]} 67. Rb4 {[%clk 0:00:10.4]} 67... Rf1+ {[%clk
0:00:28]} 68. Ke3 {[%clk 0:00:08.5]} 68... Rxf4 {[%clk 0:00:27.7]} 69. Rb5
{[%clk 0:00:08.2]} 69... Rh4 {[%clk 0:00:27.3]} 70. Rb8+ {[%clk 0:00:07.4]}
70... Kh7 {[%clk 0:00:27]} 71. Kf3 {[%clk 0:00:08.2]} 71... Nf6 {[%clk
0:00:26.7]} 72. Kg3 {[%clk 0:00:08.4]} 72... Ra4 {[%clk 0:00:26.6]} 73. Rb7
{[%clk 0:00:08]} 73... Kg6 {[%clk 0:00:27]} 74. Rb3 {[%clk 0:00:07.2]} 74... h5
{[%clk 0:00:27]} 75. Kg2 {[%clk 0:00:02]} 75... Rg4+ {[%clk 0:00:26.1]} 76. Kh2
{[%clk 0:00:01.5]} 76... Rf4 {[%clk 0:00:25.6]} 0-1

[Event "Early-Titled-Tuesday-Blitz-March-26-2024"]
[Site "Chess.com"]
[Date "2024.03.26"]
[Round "4"]
[White "Staudenhocker43"]
[Black "SAInt_666"]
[Result "0-1"]
[WhiteElo "2546"]
[BlackElo "2738"]
[TimeControl "180+1"]
[EndTime "8:39:26 PDT"]
[Termination "SAInt_666 won on time"]

1. d4 {[%clk 0:03:00.9]} 1... d5 {[%clk 0:02:59.4]} 2. Nf3 {[%clk 0:03:00.8]}
2... Nf6 {[%clk 0:02:58.6]} 3. Nbd2 {[%clk 0:02:59.3]} 3... c5 {[%clk
0:02:54.2]} 4. e3 {[%clk 0:02:58.9]} 4... cxd4 {[%clk 0:02:54.2]} 5. exd4 {[%clk
0:02:58.7]} 5... Qc7 {[%clk 0:02:54.6]} 6. c3 {[%clk 0:02:56.3]} 6... Nc6 {[%clk
0:02:45.7]} 7. Bd3 {[%clk 0:02:52.6]} 7... Bg4 {[%clk 0:02:44.3]} 8. O-O {[%clk
0:02:51.9]} 8... e6 {[%clk 0:02:44.5]} 9. Qb3 {[%clk 0:02:45.6]} 9... Bd6 {[%clk
0:02:43.5]} 10. h3 {[%clk 0:02:39.5]} 10... Bh5 {[%clk 0:02:43.2]} 11. Re1
{[%clk 0:02:27.4]} 11... O-O {[%clk 0:02:41.4]} 12. Qd1 {[%clk 0:02:18]} 12...
Rab8 {[%clk 0:02:28.1]} 13. a4 {[%clk 0:02:17]} 13... Bg6 {[%clk 0:02:20.1]} 14.
Bxg6 {[%clk 0:02:11.1]} 14... hxg6 {[%clk 0:02:21]} 15. Nf1 {[%clk 0:02:10.8]}
15... Ne4 {[%clk 0:02:15.9]} 16. Ne3 {[%clk 0:01:59.2]} 16... Na5 {[%clk
0:02:09.8]} 17. Nd2 {[%clk 0:01:41.6]} 17... Nf6 {[%clk 0:01:56.7]} 18. Ng4
{[%clk 0:01:33.7]} 18... Rfc8 {[%clk 0:01:55.3]} 19. Qf3 {[%clk 0:01:27.3]}
19... Nd7 {[%clk 0:01:47.2]} 20. Nf1 {[%clk 0:01:06.4]} 20... Nb3 {[%clk
0:01:47]} 21. Ra2 {[%clk 0:01:02.4]} 21... Qc4 {[%clk 0:01:42.2]} 22. Nfe3
{[%clk 0:00:57.9]} 22... Nxd4 {[%clk 0:01:42.4]} 23. Nxc4 {[%clk 0:00:21.9]}
23... Nxf3+ {[%clk 0:01:40.2]} 24. gxf3 {[%clk 0:00:22.8]} 24... Rxc4 {[%clk
0:01:40.9]} 25. Ne3 {[%clk 0:00:21.8]} 25... Rc6 {[%clk 0:01:39.8]} 26. Nc2
{[%clk 0:00:20.5]} 26... a6 {[%clk 0:01:37.6]} 27. Kg2 {[%clk 0:00:20.7]} 27...
Nf6 {[%clk 0:01:26.4]} 28. Bg5 {[%clk 0:00:18.4]} 28... Nh5 {[%clk 0:01:25.5]}
29. a5 {[%clk 0:00:13.9]} 29... Bf4 {[%clk 0:01:24.9]} 30. h4 {[%clk 0:00:11.4]}
30... f6 {[%clk 0:01:12]} 31. Bxf4 {[%clk 0:00:09.9]} 31... Nxf4+ {[%clk
0:01:12.9]} 32. Kg3 {[%clk 0:00:10.6]} 32... Nd3 {[%clk 0:01:13.6]} 33. Rd1
{[%clk 0:00:09.8]} 33... Ne5 {[%clk 0:01:01]} 34. f4 {[%clk 0:00:10.1]} 34...
Nc4 {[%clk 0:01:01.1]} 35. Rd3 {[%clk 0:00:07.5]} 35... Nd6 {[%clk 0:00:57.1]}
36. Nd4 {[%clk 0:00:07.4]} 36... Ne4+ {[%clk 0:00:54.7]} 37. Kg2 {[%clk
0:00:07]} 37... Rd6 {[%clk 0:00:55]} 38. b4 {[%clk 0:00:06.1]} 38... Rc8 {[%clk
0:00:53.7]} 39. Ra3 {[%clk 0:00:06.8]} 39... Kf7 {[%clk 0:00:50.9]} 40. f3
{[%clk 0:00:07]} 40... e5 {[%clk 0:00:46.5]} 41. Ne2 {[%clk 0:00:06.3]} 41...
Nc5 {[%clk 0:00:38.5]} 42. bxc5 {[%clk 0:00:06]} 42... Rxc5 {[%clk 0:00:39.4]}
43. fxe5 {[%clk 0:00:06.1]} 43... fxe5 {[%clk 0:00:40.3]} 44. Rb3 {[%clk
0:00:06.3]} 44... Rd7 {[%clk 0:00:35.3]} 45. Ra3 {[%clk 0:00:04.4]} 45... Ke6
{[%clk 0:00:34.7]} 46. Kf2 {[%clk 0:00:03.8]} 46... Rc4 {[%clk 0:00:29.3]} 47.
Kg3 {[%clk 0:00:03.5]} 47... Rd8 {[%clk 0:00:27.4]} 48. Rb3 {[%clk 0:00:03.8]}
48... Rd7 {[%clk 0:00:27.2]} 49. Rb6+ {[%clk 0:00:04.4]} 49... Kf7 {[%clk
0:00:25.4]} 50. Re3 {[%clk 0:00:04]} 50... Re7 {[%clk 0:00:23.6]} 51. Rd6 {[%clk
0:00:03]} 51... Rc5 {[%clk 0:00:23.9]} 52. Rd3 {[%clk 0:00:03.3]} 52... e4
{[%clk 0:00:20.5]} 53. R3xd5 {[%clk 0:00:03.6]} 53... Rc4 {[%clk 0:00:16.5]} 54.
Rd4 {[%clk 0:00:03]} 54... exf3 {[%clk 0:00:15.1]} 55. Kxf3 {[%clk 0:00:02.7]}
55... Rc5 {[%clk 0:00:14.8]} 56. R4d5 {[%clk 0:00:02.2]} 56... Rc4 {[%clk
0:00:15.2]} 57. Rb6 {[%clk 0:00:02.2]} 57... Rxh4 {[%clk 0:00:13.3]} 58. Rd4
{[%clk 0:00:01]} 58... Rh3+ {[%clk 0:00:13.3]} 59. Ng3 {[%clk 0:00:01.4]} 59...
g5 {[%clk 0:00:12.2]} 60. Kg4 {[%clk 0:00:01.2]} 60... Rh2 {[%clk 0:00:08.7]}
0-1

[Event "Early-Titled-Tuesday-Blitz-March-26-2024"]
[Site "Chess.com"]
[Date "2024.03.26"]
[Round "4"]
[White "djano"]
[Black "eljanov"]
[Result "0-1"]
[WhiteElo "2666"]
[BlackElo "2915"]
[TimeControl "180+1"]
[EndTime "8:39:28 PDT"]
[Termination "eljanov won by resignation"]

1. e4 {[%clk 0:03:00.9]} 1... c6 {[%clk 0:02:59.8]} 2. d4 {[%clk 0:03:00.6]}
2... d5 {[%clk 0:03:00.3]} 3. exd5 {[%clk 0:03:01.5]} 3... cxd5 {[%clk
0:03:00.5]} 4. Bd3 {[%clk 0:03:02.1]} 4... Nf6 {[%clk 0:03:01.2]} 5. c3 {[%clk
0:02:59.5]} 5... Bg4 {[%clk 0:03:00.8]} 6. Qb3 {[%clk 0:02:59.4]} 6... Qc7
{[%clk 0:03:00.7]} 7. Ne2 {[%clk 0:02:56.8]} 7... Bxe2 {[%clk 0:02:58.7]} 8.
Bxe2 {[%clk 0:02:56]} 8... e6 {[%clk 0:02:55.6]} 9. Nd2 {[%clk 0:02:54.2]} 9...
Nc6 {[%clk 0:02:53.9]} 10. Nf3 {[%clk 0:02:51.6]} 10... Bd6 {[%clk 0:02:54.4]}
11. O-O {[%clk 0:02:49.7]} 11... O-O {[%clk 0:02:54.4]} 12. Bd3 {[%clk
0:02:35.6]} 12... Ne4 {[%clk 0:02:54]} 13. Bxe4 {[%clk 0:02:27.1]} 13... dxe4
{[%clk 0:02:53.1]} 14. Ng5 {[%clk 0:02:26.9]} 14... Bxh2+ {[%clk 0:02:51.6]} 15.
Kh1 {[%clk 0:02:27.4]} 15... Bd6 {[%clk 0:02:18.1]} 16. Qc2 {[%clk 0:02:19.5]}
16... f5 {[%clk 0:02:08.3]} 17. Qb3 {[%clk 0:01:49.2]} 17... Rf6 {[%clk
0:01:39.9]} 18. Nxe6 {[%clk 0:01:04.8]} 18... Qf7 {[%clk 0:01:32.1]} 19. Ng5
{[%clk 0:00:59.2]} 19... Qxb3 {[%clk 0:01:31.4]} 20. axb3 {[%clk 0:00:58.9]}
20... a6 {[%clk 0:01:24.7]} 21. g3 {[%clk 0:00:55.9]} 21... h6 {[%clk
0:01:21.4]} 22. Nh3 {[%clk 0:00:54.3]} 22... g5 {[%clk 0:01:22]} 23. Kg2 {[%clk
0:00:44]} 23... f4 {[%clk 0:01:15.2]} 24. b4 {[%clk 0:00:39.9]} 24... Re8 {[%clk
0:01:14.1]} 25. Bd2 {[%clk 0:00:37.7]} 25... Kh7 {[%clk 0:01:05.8]} 26. Rh1
{[%clk 0:00:33.5]} 26... Kg7 {[%clk 0:00:59.3]} 27. Rae1 {[%clk 0:00:32.1]}
27... b5 {[%clk 0:00:41.1]} 28. gxf4 {[%clk 0:00:21.8]} 28... gxf4 {[%clk
0:00:41]} 29. Kf1 {[%clk 0:00:22.5]} 29... e3 {[%clk 0:00:38.4]} 30. Bc1 {[%clk
0:00:22.6]} 30... Ne7 {[%clk 0:00:30.9]} 31. Rg1+ {[%clk 0:00:21]} 31... Kf7
{[%clk 0:00:31]} 32. fxe3 {[%clk 0:00:20.6]} 32... fxe3+ {[%clk 0:00:31]} 33.
Ke2 {[%clk 0:00:21.2]} 33... Nd5 {[%clk 0:00:30]} 34. Ref1 {[%clk 0:00:20.7]}
34... Re4 {[%clk 0:00:18.6]} 35. Rxf6+ {[%clk 0:00:19.7]} 35... Kxf6 {[%clk
0:00:19.5]} 36. Rg8 {[%clk 0:00:16.3]} 36... Rh4 {[%clk 0:00:17.5]} 37. Ng1
{[%clk 0:00:16.4]} 37... Rh2+ {[%clk 0:00:16]} 38. Ke1 {[%clk 0:00:16.3]} 38...
h5 {[%clk 0:00:10.2]} 39. Nf3 {[%clk 0:00:15.3]} 39... Rh1+ {[%clk 0:00:09.5]}
40. Rg1 {[%clk 0:00:15.4]} 40... Rxg1+ {[%clk 0:00:09.7]} 41. Nxg1 {[%clk
0:00:16.1]} 41... Kf5 {[%clk 0:00:10.2]} 42. Ke2 {[%clk 0:00:15.6]} 42... Ke4
{[%clk 0:00:10.7]} 43. Nh3 {[%clk 0:00:15.4]} 43... h4 {[%clk 0:00:11.1]} 44.
Ng5+ {[%clk 0:00:14.2]} 44... Kf5 {[%clk 0:00:11.4]} 45. Nh3 {[%clk 0:00:12.8]}
45... Kg4 {[%clk 0:00:11.8]} 46. Ng1 {[%clk 0:00:13.3]} 46... Bf4 {[%clk
0:00:11.3]} 47. Kd3 {[%clk 0:00:12]} 47... h3 {[%clk 0:00:11.7]} 48. Nxh3 {[%clk
0:00:11.2]} 48... Kxh3 {[%clk 0:00:12.2]} 49. b3 {[%clk 0:00:12.1]} 49... e2
{[%clk 0:00:11.9]} 50. Kxe2 {[%clk 0:00:11.3]} 50... Bxc1 {[%clk 0:00:11.7]} 51.
Kd3 {[%clk 0:00:11.6]} 51... Ba3 {[%clk 0:00:10.7]} 52. c4 {[%clk 0:00:11.4]}
52... Nxb4+ {[%clk 0:00:10.9]} 53. Kc3 {[%clk 0:00:11.6]} 53... Kg4 {[%clk
0:00:10.7]} 54. d5 {[%clk 0:00:11.4]} 54... Kf5 {[%clk 0:00:11]} 55. Kd4 {[%clk
0:00:10.5]} 55... Nc2+ {[%clk 0:00:10]} 56. Kc3 {[%clk 0:00:10.3]} 56... Ne3
{[%clk 0:00:10.2]} 57. Kd4 {[%clk 0:00:10.7]} 57... Nc2+ {[%clk 0:00:07.8]} 58.
Kc3 {[%clk 0:00:11]} 58... bxc4 {[%clk 0:00:07.3]} 59. bxc4 {[%clk 0:00:06.3]}
59... Ne3 {[%clk 0:00:06.8]} 60. Kd4 {[%clk 0:00:06.7]} 60... Nxd5 {[%clk
0:00:06.8]} 61. Kxd5 {[%clk 0:00:05.7]} 61... a5 {[%clk 0:00:06.9]} 62. c5
{[%clk 0:00:05.3]} 62... Kf6 {[%clk 0:00:04.9]} 63. Kc4 {[%clk 0:00:05.1]} 63...
Ke7 {[%clk 0:00:05.1]} 64. Kb5 {[%clk 0:00:05.2]} 64... Bb4 {[%clk 0:00:05.5]}
65. Kb6 {[%clk 0:00:04.8]} 65... Kd7 {[%clk 0:00:05.8]} 66. c6+ {[%clk
0:00:04.3]} 66... Kc8 {[%clk 0:00:06.2]} 67. Kb5 {[%clk 0:00:04.3]} 67... Kc7
{[%clk 0:00:06.1]} 68. Ka6 {[%clk 0:00:04.1]} 68... Kxc6 {[%clk 0:00:06.4]} 0-1